bitfinex/quotes_SOLUSD_20240902
["timestamp","ask_amount","ask_price","bid_price","bid_amount"]
[1725248593230,20.0,130.01,129.99,19.2318]
[1725248594336,20.0,130.01,129.97,7.6939]
[1725248594555,20.0,130.01,129.98,7.6934]
[1725248595333,20.0,130.01,129.99,7.6928]
[1725248595675,20.0,130.02,129.99,9.23114167]
[1725248595844,20.0,130.03,130.0,45.0]
[1725248598046,20.0,130.03,130.0,52.6922]
[1725248601364,20.0,130.03,130.0,45.0]
[1725248601365,27.6906,130.03,130.0,45.0]
[1725248602342,7.6912,130.02,129.98,26.9266]
[1725248602558,20.0,130.01,129.98,26.9266]
[1725248606149,7.6912,130.02,129.98,26.9266]
[1725248606462,20.0,130.01,129.98,26.9266]
[1725248606764,7.6912,130.02,129.98,26.9266]
[1725248606938,20.0,130.01,129.98,26.9266]
[1725248609138,20.0,130.01,129.95,35.0875]
[1725248609444,7.692,130.01,129.97,7.694]
[1725248609659,20.0,130.0,129.97,7.694]
[1725248613339,20.0,130.0,129.98,54.23179899]
[1725248613541,20.0,130.01,129.98,54.23179899]
[1725248613766,20.0,130.01,129.98,52.6933]
[1725248615452,7.6906,130.03,129.99,7.6927]
[1725248615651,20.0,130.02,129.99,7.6927]
[1725248617282,7.6898,130.05,130.01,7.6917]
[1725248617456,20.0,130.04,130.01,7.6917]
[1725248620485,20.0,130.04,130.0,7.6921]
[1725248620654,20.0,130.04,130.01,45.0]
[1725248628169,20.0,130.04,130.02,9.22904014]
[1725248628367,7.6889,130.06,130.02,9.22904014]
[1725248628569,20.0,130.05,130.02,9.22904014]
[1725248628770,20.0,130.05,130.02,7.6909]
[1725248628979,20.0,130.05,130.02,9.22890039]
[1725248630563,20.0,130.05,130.02,7.6909]
[1725248631787,20.0,130.05,130.02,9.22887596]
[1725248631965,27.6894,130.05,130.01,64.2288]
[1725248632161,38.63621669,130.05,130.01,64.2288]
[1725248632958,30.94681669,130.05,130.0,15.9024]
[1725248633204,7.691,130.03,129.98,25.7298]
[1725248633390,7.691,130.03,129.99,45.0]
[1725248634282,7.691,130.03,129.99,52.6928]
[1725248634791,7.69,130.04,129.99,52.6928]
[1725248634975,20.0,130.03,129.99,52.6928]
[1725248637669,30.94681669,130.03,129.97,15.2608]
[1725248637883,7.6921,130.01,129.96,7.6945]
[1725248638095,20.0,130.0,129.96,7.6945]
[1725248638267,7.6921,130.01,129.96,7.6945]
[1725248638475,20.0,130.0,129.96,7.6945]
[1725248638793,20.0,130.0,129.95,19.2375]
[1725248638794,27.6925,130.0,129.95,26.9326]
[1725248639297,27.6925,130.0,129.96,52.6946]
[1725248641888,20.0,130.0,129.96,45.0]
[1725248642278,20.0,130.0,129.96,52.6945]
[1725248642880,20.0,130.0,129.97,1.53863583]
[1725248643082,20.0,130.01,129.97,1.53863583]
[1725248643281,20.0,130.01,129.97,9.23253583]
[1725248643482,20.0,130.01,129.98,45.0]
[1725248644104,7.6907,130.03,129.98,45.0]
[1725248644105,20.0,130.02,129.99,1.53836164]
[1725248644272,20.0,130.02,129.99,9.23116164]
[1725248644468,20.0,130.03,129.99,9.23116164]
[1725248645269,20.0,130.03,129.99,7.6928]
[1725248645496,27.6905,130.03,129.99,7.6928]
[1725248647299,20.0,130.03,130.0,7.6922]
[1725248647507,20.0,130.03,130.0,9.23052727]
[1725248647976,20.0,130.03,130.0,7.6922]
[1725248649377,16.0266805,130.08,129.99,15.8938]
[1725248649590,15.4762,130.09,130.04,7.6897]
[1725248649786,7.6876,130.08,130.03,26.9158]
[1725248649993,23.1636,130.09,130.04,9.22602185]
[1725248650316,7.6874,130.09,130.05,1.53769771]
[1725248650598,27.06679719,130.11,130.05,1.53769771]
[1725248650599,7.6865,130.1,130.05,9.22689771]
[1725248650776,16.1199805,130.11,130.06,9.22622714]
[1725248650982,9.5301805,130.11,130.09,7.6868]
[1725248651177,5.78767126,130.12,130.09,7.6868]
[1725248651398,7.6847,130.13,130.08,7.6874]
[1725248652307,7.6852,130.12,130.08,7.6874]
[1725248652609,27.6852,130.12,130.08,7.6874]
[1725248652901,20.0,130.12,130.08,9.22464826]
[1725248653302,20.0,130.12,130.08,7.6874]
[1725248654779,20.0,130.12,130.09,45.0]
[1725248655306,20.0,130.12,130.05,15.8284]
[1725248655487,7.6859,130.11,130.06,7.6883]
[1725248655801,20.0,130.1,130.06,9.2256957]
[1725248656185,20.0,130.1,130.08,7.6875]
[1725248656390,20.0,130.12,130.08,7.6875]
[1725248657287,27.6855,130.12,130.07,26.9082]
[1725248658109,27.6855,130.12,130.08,7.6874]
[1725248658290,27.6855,130.12,130.08,52.6874]
[1725248661089,20.0,130.12,130.09,7.6869]
[1725248661291,0.12549,130.13,130.09,7.6869]
[1725248661292,20.12549,130.13,130.09,7.6869]
[1725248662588,20.12549,130.13,130.08,52.6874]
[1725248663092,20.0,130.13,130.09,7.6869]
[1725248665011,20.0,130.13,130.08,52.6875]
[1725248665197,7.6853,130.12,130.08,52.6874]
[1725248665384,7.6853,130.12,130.08,45.0]
[1725248665385,20.0,130.11,130.08,45.0]
[1725248665585,20.0,130.11,130.09,7.6869]
[1725248665991,20.0,130.13,130.09,7.6869]
[1725248667003,27.6846,130.13,130.09,7.6869]
[1725248673403,20.0,130.13,130.09,7.6869]
[1725248673606,20.0,130.13,130.1,52.6862]
[1725248673804,20.0,130.14,130.11,1.53695251]
[1725248674920,27.6844,130.14,130.11,1.53695251]
[1725248675224,27.6844,130.14,130.09,26.9036]
[1725248675417,27.6844,130.14,130.1,7.6862]
[1725248676516,20.0,130.14,130.1,7.6862]
[1725248676717,20.0,130.14,130.1,9.223152]
[1725248677431,20.0,130.14,130.1,7.6862]
[1725248678926,0.12549,130.15,130.1,7.6862]
[1725248682318,7.6841,130.14,130.1,7.6862]
[1725248682527,20.0,130.13,130.1,7.6862]
[1725248684508,20.0,130.13,130.11,1.53694804]
[1725248684713,20.0,130.14,130.11,65.75064804]
[1725248685012,20.0,130.15,130.11,65.75064804]
[1725248685327,10.94681669,130.21,130.13,19.2108]
[1725248685511,10.94681669,130.21,130.17,7.6822]
[1725248685512,7.68,130.21,130.17,7.6822]
[1725248685722,7.68,130.21,130.15,19.2082]
[1725248685723,7.68,130.21,130.16,7.6827]
[1725248686024,28.9593,130.22,130.17,7.682]
[1725248686225,9.5301805,130.24,130.17,30.15161669]
[1725248686437,9.5301805,130.24,130.18,46.53593882]
[1725248687208,7.681,130.19,130.16,15.3151]
[1725248687407,7.6806,130.2,130.15,7.6834]
[1725248687612,20.0,130.19,130.15,7.6834]
[1725248687839,20.0,130.19,130.16,7.6827]
[1725248688034,7.6792,130.23,130.18,7.6816]
[1725248688420,20.0,130.22,130.18,7.6816]
[1725248688741,10.94681669,130.2,130.13,34.5263]
[1725248688918,20.25098,130.19,130.13,34.5263]
[1725248689122,20.12549,130.19,130.13,34.5263]
[1725248690040,20.0,130.19,130.13,34.5263]
[1725248690617,20.0,130.19,130.14,45.0]
[1725248691433,20.0,130.19,130.15,7.6834]
[1725248691844,20.0,130.19,130.16,7.6827]
[1725248692144,20.0,130.21,130.15,9.21958183]
[1725248692336,20.0,130.21,130.15,7.6833]
[1725248693344,7.6805,130.2,130.15,7.6833]
[1725248693531,20.0,130.19,130.15,7.6833]
[1725248694131,20.0,130.19,130.16,1.53631748]
[1725248694337,20.0,130.19,130.15,7.6833]
[1725248694530,20.0,130.19,130.16,45.0]
[1725248695328,20.0,130.19,130.16,52.6827]
[1725248695843,20.0,130.21,130.18,7.6815]
[1725248696043,20.0,130.23,130.17,19.2044]
[1725248696257,30.94681669,130.24,130.18,45.0]
[1725248696427,7.6797,130.22,130.18,45.0]
[1725248696623,7.6797,130.22,130.17,26.8861]
[1725248696624,20.0,130.21,130.17,26.8861]
[1725248697036,20.0,130.21,130.18,1.53610634]
[1725248697348,20.0,130.21,130.18,7.6815]
[1725248697521,20.0,130.22,130.18,7.6815]
[1725248699451,20.0,130.22,130.17,19.2044]
[1725248699452,27.6798,130.22,130.17,26.8865]
[1725248700129,20.0,130.22,130.18,7.6814]
[1725248700329,20.12549,130.23,130.18,7.6814]
[1725248701222,7.6793,130.22,130.18,7.6814]
[1725248701428,20.0,130.21,130.18,7.6814]
[1725248702631,20.0,130.21,130.19,54.21691879]
[1725248702833,20.0,130.23,130.19,52.6809]
[1725248704572,20.0,130.23,130.2,7.6804]
[1725248704760,25.677,130.29,130.22,7.6793]
[1725248704934,25.677,130.29,130.18,16.5376]
[1725248704935,7.6793,130.22,130.17,19.2044]
[1725248705257,20.47699719,130.25,130.15,16.6303]
[1725248705258,7.68,130.21,130.15,16.6303]
[1725248705449,7.68,130.21,130.15,24.3132]
[1725248705645,7.68,130.21,130.16,7.6826]
[1725248706138,20.0,130.2,130.16,7.6826]
[1725248706529,20.0,130.2,130.15,24.3137]
[1725248706530,27.6806,130.2,130.15,24.3137]
[1725248706730,27.6806,130.2,130.15,7.6834]
[1725248707832,20.0,130.2,130.16,7.6824]
[1725248708434,20.0,130.2,130.17,7.6821]
[1725248708635,27.6799,130.21,130.16,7.6827]
[1725248708953,0.12549,130.2,130.16,7.6827]
[1725248709141,0.25098,130.2,130.16,7.6827]
[1725248709349,38.62671669,130.21,130.16,7.6827]
[1725248710762,7.80599,130.2,130.15,7.6833]
[1725248710958,20.0,130.19,130.15,7.6833]
[1725248713051,27.6814,130.19,130.14,26.8936]
[1725248713260,7.6818,130.18,130.14,19.2099]
[1725248713564,27.80789,130.17,130.12,7.685]
[1725248713750,38.75470669,130.17,130.12,7.685]
[1725248715373,7.80869,130.16,130.11,26.8998]
[1725248715540,7.80869,130.16,130.08,19.2184]
[1725248715541,15.1788,130.14,130.08,19.2184]
[1725248715859,31.19779669,130.13,130.08,19.2184]
[1725248717238,38.88249669,130.13,130.08,26.9058]
[1725248718764,27.6847,130.13,130.09,52.6868]
[1725248719554,7.6856,130.12,130.08,19.2184]
[1725248719881,20.0,130.11,130.08,19.2184]
[1725248720647,38.63261669,130.11,130.06,7.6886]
[1725248720955,27.6858,130.11,130.06,7.6886]
[1725248722655,27.6858,130.11,130.07,7.688]
[1725248724460,7.6869,130.1,130.05,26.9122]
[1725248724780,20.0,130.09,130.05,26.9122]
[1725248726371,20.0,130.09,130.05,19.223]
[1725248726560,20.0,130.1,130.06,45.0]
[1725248726957,20.0,130.1,130.07,19.2197]
[1725248727170,20.0,130.11,130.09,7.6869]
[1725248727377,20.0,130.11,130.07,19.2197]
[1725248727557,27.6859,130.11,130.07,19.2197]
[1725248728176,27.6859,130.11,130.07,26.9077]
[1725248728854,27.6859,130.11,130.07,19.2197]
[1725248729174,27.6859,130.11,130.07,26.9077]
[1725248733656,20.0,130.11,130.08,7.6873]
[1725248734675,27.6859,130.11,130.07,26.9076]
[1725248738979,7.81189,130.1,130.07,19.2197]
[1725248739176,20.0,130.09,130.07,19.2197]
[1725248743665,7.81189,130.1,130.07,19.2197]
[1725248743871,20.0,130.09,130.07,19.2197]
[1725248746371,7.81189,130.1,130.07,19.2197]
[1725248747491,15.0592,130.09,130.02,15.342]
[1725248747665,27.6877,130.08,130.03,7.69]
[1725248747860,0.12549,130.07,130.03,7.69]
[1725248748062,0.12549,130.07,130.01,19.2282]
[1725248748263,0.25098,130.07,130.01,19.2282]
[1725248748775,7.6898,130.05,130.01,19.2282]
[1725248749072,20.0,130.04,130.01,19.2282]
[1725248749974,20.0,130.04,130.01,26.9199]
[1725248750588,20.0,130.04,130.01,19.2282]
[1725248750963,27.6901,130.04,130.0,7.6921]
[1725248751168,27.6901,130.04,129.99,7.6927]
[1725248751565,27.6901,130.04,130.0,7.6921]
[1725248751883,20.0,130.04,130.0,7.6921]
[1725248753592,20.0,130.04,130.01,7.6916]
[1725248759300,6.328,130.08,130.02,46.53800227]
[1725248759594,15.0592,130.09,130.04,19.224]
[1725248759767,7.6882,130.07,130.04,19.224]
[1725248760187,7.6892,130.06,130.01,42.5399]
[1725248760384,7.6892,130.06,130.01,26.92]
[1725248760586,15.0592,130.09,130.01,19.2285]
[1725248760773,29.7811605,130.08,130.01,19.2285]
[1725248760977,7.69,130.04,130.01,19.2285]
[1725248761468,20.0,130.03,130.0,7.6921]
[1725248763893,20.0,130.03,130.01,7.6916]
[1725248764097,7.6889,130.06,130.01,7.6916]
[1725248764305,20.0,130.05,130.02,7.6911]
[1725248765501,20.0,130.05,130.03,9.22833054]
[1725248765704,27.688,130.08,130.04,7.6898]
[1725248766700,7.688,130.08,130.04,7.6898]
[1725248767895,20.0,130.07,130.04,7.6898]
[1725248770079,27.6882,130.07,130.03,7.6903]
[1725248770292,7.6894,130.05,129.99,19.231]
[1725248770499,20.0,130.04,130.0,7.6919]
[1725248770807,20.0,130.04,130.01,7.6914]
[1725248771186,20.0,130.05,130.01,7.6914]
[1725248771398,20.0,130.05,130.02,7.691]
[1725248771609,21.6465,130.09,130.04,7.6899]
[1725248771900,20.0,130.08,130.04,7.6899]
[1725248772075,27.6876,130.08,130.04,7.6899]
[1725248772913,7.6892,130.06,130.01,7.6911]
[1725248773377,20.0,130.05,130.01,7.6911]
[1725248774906,7.6892,130.06,130.01,7.6911]
[1725248775398,20.0,130.05,130.01,9.22914817]
[1725248775603,20.0,130.05,130.01,7.6911]
[1725248775900,20.0,130.05,130.02,7.6909]
[1725248776411,20.0,130.05,130.01,7.6916]
[1725248778010,27.6894,130.05,130.01,7.6916]
[1725248778182,27.6894,130.05,130.0,19.2303]
[1725248778183,7.6899,130.04,130.0,19.2303]
[1725248778384,20.0,130.03,130.0,19.2303]
[1725248778791,20.0,130.03,130.0,26.9225]
[1725248780110,20.0,130.03,130.0,19.2303]
[1725248781982,27.6906,130.03,129.99,7.6924]
[1725248784982,34.40147473,130.09,130.0,14.29327045]
[1725248785287,15.0592,130.09,130.05,7.6887]
[1725248785501,22.7006,130.12,130.06,1.53755609]
[1725248785703,12.31387525,130.14,130.09,7.6867]
[1725248785886,7.6846,130.14,130.09,7.6867]
[1725248786084,31.4125805,130.16,130.1,9.22337538]
[1725248786392,39.0959805,130.16,130.1,54.22337538]
[1725248786597,6.322,130.19,130.12,12.75497473]
[1725248786793,6.322,130.19,130.13,46.53660833]
[1725248787193,7.6805,130.2,130.14,31.96497473]
[1725248787394,7.6805,130.2,130.15,45.0]
[1725248787710,23.8283805,130.22,130.16,1.53638742]
[1725248788314,23.8283805,130.22,130.15,45.0]
[1725248788889,7.6799,130.21,130.16,7.6825]
[1725248789096,27.6807,130.2,130.14,26.8936]
[1725248789300,27.6807,130.2,130.15,52.6833]
[1725248789496,20.0,130.2,130.15,52.6833]
[1725248789815,7.6787,130.23,130.17,12.75497473]
[1725248790025,6.623,130.26,130.17,31.95997473]
[1725248790206,14.3003,130.26,130.21,7.6798]
[1725248790722,7.6763,130.27,130.22,1.53576017]
[1725248791308,7.6773,130.26,130.21,12.75497473]
[1725248791596,12.73384304,130.26,130.2,26.881]
[1725248791793,25.48881777,130.26,130.2,26.881]
[1725248791997,20.0,130.25,130.2,26.881]
[1725248792212,20.0,130.25,130.21,45.0]
[1725248792395,20.0,130.25,130.2,26.881]
[1725248794998,27.6776,130.25,130.2,26.881]
[1725248796807,20.0,130.25,130.21,1.53581476]
[1725248797007,0.12549,130.26,130.21,46.53581476]
[1725248797517,7.92788,130.27,130.22,7.6792]
[1725248797818,27.677,130.26,130.21,54.21561476]
[1725248798714,27.677,130.26,130.21,7.6798]
[1725248799024,0.12549,130.25,130.21,7.6798]
[1725248799504,27.677,130.26,130.21,9.21553514]
[1725248799818,27.677,130.26,130.22,1.53565463]
[1725248800224,27.677,130.26,130.21,7.6798]
[1725248801318,7.6775,130.25,130.2,19.2007]
[1725248801520,7.6787,130.23,130.18,7.6816]
[1725248801820,20.0,130.22,130.18,7.6816]
[1725248802326,20.0,130.22,130.17,19.205]
[1725248802500,20.0,130.24,130.17,19.205]
[1725248802705,20.0,130.24,130.14,47.42088786]
[1725248802706,7.678,130.25,130.2,7.6804]
[1725248802931,7.6789,130.23,130.19,19.2014]
[1725248803100,20.0,130.22,130.19,19.2014]
[1725248803305,26.3621,130.22,130.15,19.2084]
[1725248803501,7.6816,130.19,130.15,19.2084]
[1725248803804,20.0,130.18,130.15,19.2084]
[1725248804403,20.0,130.19,130.17,7.682]
[1725248804622,20.0,130.21,130.18,7.6814]
[1725248805323,20.0,130.22,130.18,7.6814]
[1725248805839,20.0,130.22,130.19,7.6809]
[1725248807111,20.0,130.22,130.18,7.6815]
[1725248810739,20.0,130.22,130.19,7.6809]
[1725248810931,20.0,130.23,130.19,7.6809]
[1725248811806,27.6787,130.23,130.2,1.53590021]
[1725248812556,27.6787,130.23,130.19,7.6809]
[1725248813231,27.6787,130.23,130.2,1.53590034]
[1725248814010,27.6787,130.23,130.19,7.6809]
[1725248815127,27.6787,130.23,130.2,1.53590074]
[1725248816131,27.6787,130.23,130.19,7.6809]
[1725248816838,27.6787,130.23,130.2,1.53591234]
[1725248817510,20.0,130.23,130.2,1.53591234]
[1725248817716,27.6781,130.24,130.2,52.6803]
[1725248820222,27.6781,130.24,130.19,26.883]
[1725248820429,7.6787,130.23,130.19,26.883]
[1725248820622,20.0,130.22,130.19,26.883]
[1725248821338,20.0,130.23,130.2,52.6803]
[1725248821521,34.60309069,130.28,130.21,20.73473962]
[1725248821522,21.8776,130.28,130.21,20.73473962]
[1725248821721,7.6768,130.27,130.22,52.6792]
[1725248822033,21.8776,130.28,130.22,45.0]
[1725248822034,7.6759,130.28,130.22,45.0]
[1725248822421,7.6752,130.29,130.24,7.678]
[1725248822622,7.6752,130.29,130.25,45.0]
[1725248822934,7.6746,130.3,130.25,46.5351937]
[1725248823118,7.6741,130.31,130.26,52.6768]
[1725248823318,12.72549069,130.32,130.27,1.5350753]
[1725248823521,7.6728,130.33,130.27,28.4004753]
[1725248824244,22.0311,130.34,130.28,7.6756]
[1725248824414,6.6591,130.34,130.29,46.53475213]
[1725248824634,6.6591,130.34,130.27,19.1897]
[1725248824920,6.6591,130.34,130.28,45.0]
[1725248825546,7.6751,130.3,130.24,25.6799]
[1725248825839,31.76965398,130.33,130.25,45.0]
[1725248826045,20.0,130.32,130.25,45.0]
[1725248826216,20.0,130.32,130.27,7.6761]
[1725248826632,20.0,130.33,130.27,7.6761]
[1725248827321,0.12549,130.32,130.26,7.6768]
[1725248827528,7.674,130.31,130.27,45.0]
[1725248827823,20.0,130.3,130.27,52.6762]
[1725248828425,20.0,130.33,130.27,52.6762]
[1725248829314,7.6734,130.32,130.27,52.6762]
[1725248829514,20.0,130.31,130.27,52.6762]
[1725248831838,27.6741,130.31,130.27,45.0]
[1725248832024,27.6741,130.31,130.26,7.6766]
[1725248832425,7.6757,130.29,130.24,26.8725]
[1725248832940,7.6757,130.29,130.25,7.6775]
[1725248833232,7.6746,130.3,130.25,7.6775]
[1725248833432,20.0,130.29,130.25,7.6775]
[1725248834047,20.0,130.29,130.26,52.6767]
[1725248834543,20.0,130.3,130.27,7.6762]
[1725248834745,20.0,130.31,130.28,45.0]
[1725248834919,20.0,130.31,130.28,52.6757]
[1725248835232,7.6728,130.33,130.28,52.6757]
[1725248835233,20.0,130.32,130.28,52.6757]
[1725248836020,27.6738,130.32,130.27,7.6762]
[1725248836425,27.6738,130.32,130.28,7.6757]
[1725248838220,20.0,130.32,130.29,45.0]
[1725248838643,20.0,130.32,130.28,7.6757]
[1725248838825,20.0,130.32,130.29,45.0]
[1725248839143,20.0,130.32,130.29,54.20982025]
[1725248839337,73.51475398,130.37,130.32,7.6729]
[1725248839338,30.2392,130.37,130.32,7.6729]
[1725248839689,7.6693,130.39,130.34,7.6716]
[1725248840830,20.0,130.38,130.34,7.6716]
[1725248841153,7.6712,130.36,130.31,7.6739]
[1725248841335,20.0,130.35,130.31,7.6739]
[1725248842945,7.6729,130.33,130.29,64.1876]
[1725248843141,27.672,130.35,130.29,26.8627]
[1725248843373,20.0,130.35,130.3,45.0]
[1725248843867,20.0,130.35,130.31,7.6739]
[1725248844167,27.6716,130.35,130.3,52.6745]
[1725248844541,20.0,130.35,130.3,45.0]
[1725248844852,7.6723,130.34,130.29,26.8626]
[1725248845036,20.0,130.33,130.29,26.8626]
[1725248847641,7.6734,130.32,130.29,19.1876]
[1725248847847,7.6734,130.32,130.28,7.6757]
[1725248848456,27.6729,130.33,130.28,7.6757]
[1725248848859,27.6729,130.33,130.29,7.6749]
[1725248849170,20.0,130.33,130.3,7.6745]
[1725248849460,7.6711,130.36,130.32,7.6729]
[1725248849665,21.267,130.38,130.33,54.20697151]
[1725248849666,7.6705,130.37,130.33,54.20697151]
[1725248849969,21.267,130.38,130.33,54.20697151]
[1725248849970,22.6949,130.38,130.33,52.6726]
[1725248850142,31.76965398,130.41,130.35,7.6716]
[1725248850143,6.4229,130.41,130.35,7.6716]
[1725248850349,7.6687,130.4,130.35,7.6716]
[1725248851071,7.6694,130.39,130.35,7.6716]
[1725248851442,7.6694,130.39,130.34,7.6722]
[1725248852660,6.4229,130.41,130.35,45.0]
[1725248852860,20.0,130.4,130.36,1.53388962]
[1725248853571,20.0,130.4,130.36,7.6709]
[1725248853751,20.0,130.4,130.37,9.20408378]
[1725248853958,20.0,130.41,130.37,9.20408378]
[1725248854780,7.6669,130.43,130.38,54.20356905]
[1725248855274,7.6665,130.44,130.39,7.6691]
[1725248855484,7.6665,130.44,130.4,1.53347746]
[1725248855775,31.76965398,130.47,130.4,1.53347746]
[1725248855776,7.6658,130.45,130.4,52.6687]
[1725248855984,7.6658,130.45,130.4,7.6687]
[1725248856473,31.76965398,130.47,130.38,80.6486]
[1725248856675,31.76965398,130.43,130.35,41.5147]
[1725248856887,20.12549,130.42,130.35,41.5147]
[1725248857088,20.25098,130.42,130.35,41.5147]
[1725248857972,7.6681,130.41,130.36,7.6706]
[1725248858180,20.0,130.4,130.37,7.6699]
[1725248858487,27.6676,130.42,130.38,45.0]
[1725248860079,27.6676,130.42,130.38,52.6697]
[1725248860290,20.0,130.42,130.39,1.53365238]
[1725248860584,7.6659,130.45,130.4,1.53345067]
[1725248861083,7.6659,130.45,130.4,7.6685]
[1725248861270,0.25098,130.44,130.39,26.8415]
[1725248861468,7.6664,130.44,130.39,26.8415]
[1725248861780,20.0,130.43,130.4,45.0]
[1725248862383,20.0,130.43,130.4,52.6685]
[1725248862955,20.0,130.43,130.4,7.6685]
[1725248863887,20.0,130.43,130.39,26.8416]
[1725248864890,20.0,130.43,130.37,7.67]
[1725248865091,7.6676,130.42,130.38,45.0]
[1725248865463,7.6676,130.42,130.38,52.6698]
[1725248867562,51.76965398,130.48,130.4,7.6686]
[1725248867991,7.6667,130.44,130.39,7.6691]
[1725248868281,20.0,130.43,130.39,7.6691]
[1725248869701,20.0,130.43,130.4,45.0]
[1725248870186,20.0,130.43,130.39,7.6691]
[1725248870589,27.6671,130.43,130.39,7.6691]
[1725248871373,31.89514398,130.42,130.35,41.5146]
[1725248871581,20.0,130.41,130.35,41.5146]
[1725248872283,7.6691,130.4,130.36,7.6708]
[1725248872464,7.6691,130.4,130.35,49.1861]
[1725248872669,20.0,130.41,130.33,7.6726]
[1725248872864,7.6703,130.38,130.33,7.6726]
[1725248873283,7.6703,130.38,130.34,7.6721]
[1725248873795,32.02063398,130.4,130.33,7.6726]
[1725248873796,7.6705,130.37,130.33,7.6726]
[1725248874087,27.6705,130.37,130.33,7.6726]
[1725248874676,32.02063398,130.4,130.33,7.6726]
[1725248874677,16.1582,130.43,130.34,19.1799]
[1725248874879,16.1582,130.43,130.38,7.6694]
[1725248874880,7.6677,130.42,130.38,7.6694]
[1725248875087,7.6671,130.43,130.38,7.6694]
[1725248875270,7.6671,130.43,130.39,54.20265783]
[1725248875564,7.6664,130.44,130.4,1.53343515]
[1725248875763,7.6659,130.45,130.41,1.5334322]
[1725248875969,38.39435398,130.48,130.41,9.2014322]
[1725248876170,6.6247,130.48,130.43,19.1668]
[1725248876476,7.6646,130.47,130.42,7.6673]
[1725248876677,14.2888,130.48,130.43,45.0]
[1725248876987,7.6641,130.48,130.43,46.53305476]
[1725248877197,7.6635,130.49,130.43,52.6667]
[1725248878384,20.0,130.48,130.44,7.6663]
[1725248879580,20.0,130.48,130.43,45.0]
[1725248879581,27.664,130.48,130.43,52.6668]
[1725248881473,20.0,130.48,130.42,19.1678]
[1725248881696,7.6652,130.46,130.42,19.1678]
[1725248881907,7.6652,130.46,130.42,26.8353]
[1725248882078,7.6646,130.47,130.42,26.8353]
[1725248882279,20.0,130.46,130.42,26.8353]
[1725248883702,20.0,130.46,130.43,52.6668]
[1725248883999,20.0,130.47,130.43,52.6668]
[1725248884504,20.0,130.47,130.44,7.6659]
[1725248884712,20.0,130.47,130.43,45.0]
[1725248884713,7.6636,130.49,130.45,52.6656]
[1725248885010,20.0,130.48,130.45,7.6656]
[1725248887198,27.6641,130.48,130.44,26.8315]
[1725248887380,27.6641,130.48,130.44,19.1652]
[1725248887581,20.0,130.48,130.41,19.1702]
[1725248887780,7.6661,130.45,130.41,26.8381]
[1725248887988,7.667,130.43,130.39,7.6692]
[1725248888290,39.1608,130.48,130.38,19.174]
[1725248888494,20.0,130.48,130.4,19.1708]
[1725248888681,7.6652,130.46,130.42,7.6675]
[1725248888877,20.0,130.45,130.4,19.1708]
[1725248889110,7.6666,130.44,130.4,19.1708]
[1725248889907,7.6675,130.42,130.37,34.8107]
[1725248890203,20.0,130.43,130.37,34.8107]
[1725248890403,20.0,130.44,130.37,34.8107]
[1725248891106,20.0,130.44,130.38,45.0]
[1725248891314,7.6669,130.43,130.38,52.6698]